bitfinex-derivatives/quotes_ETHF0:USTF0_20260303
["timestamp","ask_amount","ask_price","bid_price","bid_amount"]
[1772543554444,0.90737464,1954.4,1953.4,0.00569087]
[1772543555142,0.90456248,1954.2,1953.1,0.04284386]
[1772543555339,0.90456248,1954.2,1953.2,0.03801067]
[1772543555542,0.90456248,1954.2,1953.1,0.0008]
[1772543556044,0.90401337,1954.0,1953.1,0.00701673]
[1772543556247,0.90916925,1954.0,1953.1,0.00701673]
[1772543556449,0.90916925,1954.0,1953.1,0.0416376]
[1772543559150,0.90916925,1954.0,1953.2,0.04102293]
[1772543559547,0.90916925,1954.0,1953.1,0.00701673]
[1772543561950,0.90916925,1954.0,1952.7,0.10491894]
[1772543562250,0.90916925,1954.0,1952.8,0.11193567]
[1772543562946,0.90916925,1954.0,1952.8,6.81238096]
[1772543563144,0.8531455,1953.4,1952.0,0.10338422]
[1772543563448,6.29751,1953.5,1952.0,0.10338422]
[1772543563449,0.8531455,1953.2,1952.0,0.10338422]
[1772543564045,0.8531455,1953.2,1952.0,0.10771745]
[1772543565550,0.8531455,1953.2,1952.2,0.09772587]
[1772543565847,0.8531455,1953.2,1952.2,0.09852587]
[1772543566354,0.8531455,1953.2,1952.2,0.0008]
[1772543566544,3.27780532,1953.2,1952.2,0.0008]
[1772543566751,0.85289037,1953.1,1952.2,0.0008]
[1772543567251,0.85289037,1953.1,1952.0,0.00433323]
[1772543567448,0.85249037,1952.7,1951.4,6.695]
[1772543567653,0.85249037,1952.7,1951.5,6.95124]
[1772543568144,0.85249037,1952.7,1951.4,0.0008]
[1772543568345,0.85249037,1952.7,1951.4,0.00561776]
[1772543568547,0.91927569,1952.4,1951.4,0.00561776]
[1772543568746,0.92586899,1952.4,1951.4,0.00561776]
[1772543577356,0.92586899,1952.4,1951.4,0.26187776]
[1772543580561,0.92586899,1952.4,1951.5,6.696]
[1772543580764,0.92586899,1952.4,1951.4,6.95787776]
[1772543581960,0.92586899,1952.4,1951.4,13.00575776]
[1772543582263,8.67058607,1953.4,1951.4,13.00575776]
[1772543582264,0.91191293,1952.8,1951.8,0.25701]
[1772543582460,0.91191293,1952.8,1952.0,0.25619]
[1772543582855,0.91191293,1952.8,1952.1,6.696]
[1772543583060,0.91740976,1952.8,1952.1,6.696]
[1772543584065,0.91740976,1952.8,1952.0,0.15619]
[1772543584260,0.91740976,1952.8,1951.8,0.0008]
[1772543584464,0.91740976,1952.8,1951.9,6.696]
[1772543586464,0.91740976,1952.8,1951.9,6.9522]
[1772543586961,0.91740976,1952.8,1951.9,0.2562]
[1772543587165,0.91740976,1952.8,1952.0,6.696]
[1772543587764,0.91740976,1952.8,1951.9,0.2562]
[1772543587964,0.91740976,1952.8,1952.0,6.696]
[1772543588160,0.91740976,1952.8,1951.8,0.0008]
[1772543588471,0.91740976,1952.8,1951.8,6.6968]
[1772543589060,0.91740976,1952.8,1951.8,6.953]
[1772543589265,0.91740976,1952.8,1951.8,9.37765982]
[1772543590362,0.00549683,1952.8,1952.2,0.25616]
[1772543590566,0.93205633,1952.8,1952.2,0.25696]
[1772543590967,0.9265595,1953.0,1952.3,6.695]
[1772543591267,0.9265595,1953.0,1952.2,0.0008]
[1772543591469,0.9265595,1953.0,1952.2,6.6958]
[1772543591966,0.93066992,1953.0,1952.2,0.0008]
[1772543592865,0.92792555,1952.8,1951.8,0.0008]
[1772543593267,0.92792555,1952.6,1951.8,0.0008]
[1772543594567,0.9302833,1952.4,1951.8,0.0008]
[1772543596460,0.9302833,1952.4,1951.4,6.70161776]
[1772543598661,0.9302833,1952.4,1951.4,0.00561776]
[1772543599869,0.92265614,1952.2,1950.9,6.696]
[1772543600771,0.92265614,1952.2,1951.0,0.00642188]
[1772543600965,0.92271553,1952.0,1951.0,0.00642188]
[1772543604065,0.91712778,1951.8,1950.6,0.25637]
[1772543604267,0.25624,1951.6,1950.6,0.0008]
[1772543604471,0.91712778,1951.3,1950.1,0.01336609]
[1772543604671,0.91712778,1951.3,1950.2,6.56451]
[1772543604873,0.91712778,1951.3,1950.2,0.25642]
[1772543605074,0.92223225,1951.3,1950.3,6.697]
[1772543605270,0.92223225,1951.3,1950.2,0.26041762]
[1772543605468,0.92223225,1951.3,1950.2,0.00399762]
[1772543606369,0.91629334,1950.7,1949.7,2.42465982]
[1772543606572,0.91629334,1951.2,1949.8,6.95347]
[1772543606876,0.91629334,1951.2,1949.9,6.697]
[1772543607272,0.91629334,1951.2,1949.9,6.70263088]
[1772543607771,0.94065072,1950.8,1949.8,0.0008]
[1772543608172,0.94065072,1950.6,1949.8,0.0008]
[1772543608776,0.94065072,1950.6,1949.8,0.00739735]
[1772543609876,0.77459435,1951.2,1950.1,0.39901271]
[1772543610081,0.77459435,1951.2,1950.2,0.39901271]
[1772543610576,0.77459435,1951.2,1950.0,0.39533687]
[1772543610880,0.77459435,1951.2,1949.9,7.09333687]
[1772543611081,0.77459435,1951.2,1949.9,0.39533687]
[1772543613282,0.77459435,1951.1,1949.8,0.4247951]
[1772543613684,0.77459435,1951.1,1950.1,0.38413351]
[1772543614485,0.77459435,1951.1,1950.3,0.38020271]
[1772543614680,0.77459435,1951.1,1950.3,0.38100271]
[1772543614881,0.77459435,1951.1,1950.3,7.07900271]
[1772543615086,0.77459435,1951.1,1950.4,0.38044252]
[1772543618689,0.77459435,1951.1,1950.3,0.34569233]
[1772543619295,0.77459435,1951.1,1950.3,6.6988]
[1772543619495,0.77459435,1951.1,1950.3,0.0008]
[1772543619892,0.77459435,1950.9,1950.0,0.1]
[1772543620487,0.77459435,1950.9,1949.8,0.00739735]
[1772543622396,0.77459435,1950.7,1949.8,0.00739735]
[1772543624492,0.77459435,1950.5,1949.4,0.0008]
[1772543624900,0.77459435,1950.3,1949.4,0.0008]
[1772543625495,0.77459435,1950.3,1949.4,0.00367011]
[1772543625696,0.77459435,1950.3,1949.2,0.87895798]
[1772543626198,0.77459435,1950.3,1949.3,0.43237233]
[1772543626595,0.77459435,1950.3,1949.3,0.43663293]
[1772543629495,0.77459435,1950.3,1949.4,0.42930946]
[1772543631003,0.77459435,1950.3,1949.5,0.39933815]
[1772543631301,0.77459435,1950.3,1949.5,0.40013815]
[1772543631803,0.77459435,1950.3,1949.5,0.37358072]
[1772543632704,0.77459435,1950.3,1949.5,0.37015124]
[1772543633103,0.7864734,1951.0,1949.7,0.36935124]
[1772543634705,0.7864734,1951.0,1949.9,0.35343719]
[1772543634902,0.7864734,1951.0,1949.9,0.35423719]
[1772543635599,0.7864734,1951.0,1950.1,0.34775048]
[1772543636199,0.7864734,1951.0,1949.9,0.0008]
[1772543636200,0.7864734,1951.2,1950.3,0.34396828]
[1772543636404,0.7864734,1951.2,1950.3,0.0008]
[1772543637210,0.7864734,1951.2,1950.3,0.34516118]
[1772543638599,0.7864734,1951.2,1950.3,0.0008]
[1772543638799,0.7864734,1951.2,1950.3,0.33111848]
[1772543639203,0.7864734,1951.2,1950.5,0.32655378]
[1772543639406,0.2562,1952.0,1950.5,0.32655378]
[1772543639407,0.7864734,1951.4,1950.6,0.32655378]
[1772543640108,0.7864734,1951.6,1950.6,0.32655378]
[1772543640307,0.7864734,1951.6,1950.6,7.02455378]
[1772543641202,0.79179053,1951.6,1950.7,0.31855253]
[1772543641402,0.79179053,1951.6,1950.7,0.32359489]
[1772543643112,0.79179053,1951.6,1950.7,7.02159489]
[1772543643808,0.79179053,1951.6,1950.8,0.31129076]
[1772543645010,0.7864734,1951.8,1950.9,0.3079751]
[1772543645713,0.72315346,1952.0,1950.9,0.3079751]
[1772543645914,0.72315346,1952.0,1951.1,0.30193305]
[1772543646113,0.72836993,1952.0,1951.3,0.30193305]
[1772543646705,0.72836993,1952.0,1951.2,6.99596252]
[1772543646904,0.72836993,1952.0,1951.1,0.0008]
[1772543647411,0.72836993,1952.0,1951.1,0.29606107]
[1772543648608,0.72836993,1952.0,1951.1,6.99306107]
[1772543649011,0.72836993,1952.0,1951.2,0.28669621]
[1772543651316,0.72315346,1952.4,1951.4,0.27107468]
[1772543651516,0.72315346,1952.4,1951.5,0.2727899]
[1772543651814,0.72315346,1952.4,1951.3,6.9697899]
[1772543652511,0.72315346,1952.2,1951.1,0.26991592]
[1772543652715,0.72315346,1952.2,1951.1,6.96691592]
[1772543653612,0.72315346,1952.2,1951.1,0.26991592]
[1772543653815,0.72315346,1952.2,1951.1,0.0008]
[1772543654312,0.72315346,1952.0,1951.1,0.0008]
[1772543654517,0.72315346,1951.6,1950.7,0.00504236]
[1772543656719,0.72315346,1951.6,1950.7,0.28419417]
[1772543658820,0.72315346,1951.6,1950.7,0.00504236]
[1772543659213,0.72315346,1951.6,1950.7,0.27520105]
[1772543659924,0.72984808,1952.1,1951.2,0.25239925]
[1772543660123,0.72984808,1952.1,1951.3,6.95095435]
[1772543660515,0.72984808,1952.1,1951.4,0.25295435]
[1772543661215,0.72984808,1952.1,1951.5,0.24961259]
[1772543661518,0.72984808,1952.1,1951.4,6.94990746]
[1772543661821,0.72984808,1952.1,1951.5,0.25190746]
[1772543662224,0.72984808,1952.1,1951.3,0.24829145]
[1772543663020,0.72984808,1952.1,1951.2,0.0008]
[1772543663722,0.72984808,1952.1,1951.2,0.25055273]
[1772543668827,0.72984808,1952.1,1951.2,6.94955273]
[1772543669524,0.72984808,1952.1,1951.3,0.22757264]
[1772543673829,0.72984808,1952.1,1951.4,0.21008562]
[1772543675029,0.00373766,1952.4,1951.8,0.2105076]
[1772543675231,0.72984808,1952.7,1952.0,0.2105076]
[1772543675630,0.72984808,1952.7,1952.1,6.699]
[1772543675829,0.72984808,1952.7,1951.8,0.21325492]
[1772543676030,0.72984808,1952.7,1951.8,6.6998]
[1772543676223,0.72984808,1952.7,1951.8,6.70397694]
[1772543676224,0.73553638,1952.7,1951.8,6.70397694]
[1772543676825,0.73553638,1952.7,1951.8,6.91684282]
[1772543677932,0.73553638,1952.7,1951.8,0.00497694]
[1772543678531,0.72984808,1952.5,1951.8,0.00497694]
[1772543678731,0.72984808,1952.5,1951.5,6.91342744]
[1772543679825,0.72984808,1952.5,1951.5,0.21930529]
[1772543680030,0.72984808,1952.3,1951.5,0.00487785]
[1772543680331,0.72984808,1952.1,1951.2,0.0008]
[1772543680532,0.72984808,1951.9,1951.2,0.0008]
[1772543680734,0.72984808,1951.9,1950.8,6.699]
[1772543681039,0.72984808,1951.9,1950.7,6.9273821]
[1772543681334,0.72984808,1951.9,1950.7,6.93111474]
[1772543681535,0.72984808,1951.9,1950.7,0.23211474]
[1772543681725,0.72984808,1951.7,1950.7,6.70353264]
[1772543681931,0.25631,1951.1,1949.9,0.73427057]
[1772543682125,0.00249592,1951.0,1949.9,0.73427057]
[1772543682934,0.00273317,1950.9,1949.9,0.74034135]
[1772543683136,0.00273317,1950.9,1949.9,0.00687078]
[1772543683432,0.00273317,1950.9,1949.9,0.74022273]
[1772543687545,0.00273317,1950.9,1949.9,0.00687078]
[1772543688137,0.00477629,1951.0,1949.9,0.00687078]
[1772543688138,0.27981666,1950.7,1949.9,0.00687078]
[1772543689640,0.28288636,1950.5,1949.5,0.79385313]
[1772543690340,0.2802246,1950.7,1949.5,0.79385313]
[1772543690741,0.2802246,1950.7,1949.5,0.7995885]
[1772543692940,0.27196102,1950.9,1949.5,0.7995885]
[1772543693953,0.27196102,1950.9,1949.6,1.05035313]
[1772543694145,0.27196102,1950.9,1949.8,0.79385313]
[1772543694445,0.27196102,1950.9,1950.0,0.79385313]
[1772543694748,0.27196102,1950.9,1950.0,0.79465313]
[1772543697448,0.27977615,1950.5,1949.7,0.79385313]
[1772543699250,0.25637,1950.6,1949.7,0.79385313]
[1772543699550,0.22217945,1950.8,1949.7,0.79385313]
[1772543700551,0.19800596,1950.6,1949.7,0.79385313]
[1772543700748,0.1978823,1950.8,1949.7,0.79385313]
[1772543700949,0.00477629,1951.0,1950.1,3.2239772]
[1772543701143,0.00477629,1951.0,1950.2,0.79385313]
[1772543701348,0.1978823,1951.3,1950.4,0.79385313]
[1772543701549,0.00910272,1951.8,1950.8,0.86111407]
[1772543701744,0.00910272,1952.0,1951.0,0.86111407]
[1772543701949,0.00910272,1952.4,1951.2,0.86111407]
[1772543702151,0.00910272,1952.4,1951.2,0.86191407]
[1772543702350,0.0051842,1952.4,1951.4,0.86111407]
[1772543702853,0.01155493,1952.4,1951.4,0.86111407]
[1772543704057,0.0051842,1952.4,1951.4,0.86111407]
[1772543704757,0.00638027,1952.4,1951.4,0.86111407]
[1772543705056,0.0051842,1952.4,1951.4,0.86111407]
[1772543705654,0.00764433,1952.4,1951.4,0.86111407]
[1772543706152,0.0051842,1952.4,1951.4,0.86111407]
[1772543706356,0.00494572,1953.0,1951.6,3.29322123]
[1772543706560,0.00494572,1953.2,1951.8,0.86314856]
[1772543706954,0.25602,1953.3,1951.8,0.86314856]
[1772543707160,0.00484292,1953.1,1952.0,0.86314856]
[1772543707359,0.00995437,1953.1,1952.0,0.86394856]
[1772543707852,0.03270866,1953.0,1952.0,0.86394856]
[1772543708258,0.03270866,1952.8,1952.0,0.86394856]
[1772543708455,0.36911356,1952.5,1951.6,0.79465313]
[1772543708654,0.36911356,1952.5,1951.6,0.0008]
[1772543709463,0.36911356,1952.5,1951.6,0.79465313]
[1772543711364,0.36911356,1952.5,1951.6,0.0008]
[1772543712465,0.36911356,1952.5,1951.6,0.79465313]
[1772543713369,0.40441702,1952.2,1951.6,0.0008]
[1772543713670,0.40441702,1952.2,1951.6,0.79465313]
[1772543713868,0.40441702,1952.2,1951.6,0.0008]
[1772543714369,0.40441702,1952.2,1951.3,0.79385313]
[1772543715365,0.39969341,1951.9,1951.2,0.00676401]
[1772543715566,0.39969341,1951.9,1950.9,0.79385313]
[1772543715765,0.39969341,1951.9,1950.1,9.13192407]
[1772543715766,0.39969341,1951.9,1950.7,0.79385313]
[1772543716071,0.39727503,1951.3,1950.5,0.79385313]
[1772543716471,0.39727503,1951.3,1950.3,0.79385313]
[1772543716772,0.40235871,1951.3,1950.5,0.00531486]
[1772543716969,0.40235871,1951.3,1950.5,0.79916799]
[1772543717270,6.30265,1951.9,1950.5,0.79916799]
[1772543717271,0.39456026,1951.9,1950.6,0.79385313]
[1772543717564,0.39242686,1952.2,1950.8,0.79385313]
[1772543717765,0.25614,1952.4,1951.0,0.79465313]
[1772543718065,0.38850816,1952.3,1951.0,0.79465313]
[1772543718268,0.39047206,1952.2,1951.0,0.79465313]
[1772543718475,0.25623,1951.7,1951.0,0.79465313]
[1772543718665,0.39045049,1951.6,1951.0,0.0008]
[1772543718868,0.39045049,1951.6,1951.0,0.78242748]
[1772543719065,6.702,1951.9,1951.0,0.78242748]
[1772543719267,7.08979913,1951.9,1951.0,0.78242748]
[1772543719467,0.38779913,1951.8,1951.0,0.78242748]
[1772543719761,0.38763247,1952.4,1951.2,0.83065132]
[1772543721072,0.38587734,1952.3,1951.2,0.83065132]
[1772543722270,0.24189042,1952.2,1951.2,0.83065132]
[1772543723467,0.23922658,1952.0,1951.2,0.83065132]
[1772543723872,0.24050722,1951.9,1951.2,0.83065132]
[1772543724472,0.24050722,1951.9,1951.0,0.83145132]
[1772543725974,0.23441622,1951.7,1951.0,0.83145132]
[1772543726575,0.25621,1951.8,1951.0,0.83145132]
[1772543727668,0.48517789,1951.8,1951.0,0.83145132]
[1772543729568,7.19748451,1952.1,1951.0,0.83145132]
[1772543729775,0.22354747,1952.2,1951.0,0.83145132]
[1772543730275,0.22181047,1952.1,1951.0,0.83145132]
[1772543731172,7.43420634,1952.2,1951.0,0.83145132]
[1772543731374,0.21636693,1952.2,1951.0,0.83145132]
[1772543731568,0.0035837,1952.4,1951.2,0.83065132]
[1772543731875,0.0035837,1952.4,1951.4,0.83065132]
[1772543732171,0.0035837,1952.4,1951.4,0.83145132]
[1772543733777,7.23044859,1952.7,1951.5,0.25625]
[1772543733975,0.20940079,1953.0,1951.6,0.83065132]
[1772543734178,7.43997952,1953.0,1951.8,0.83065132]
[1772543734476,0.20940079,1953.0,1951.8,0.83145132]
[1772543734774,0.0053444,1953.0,1951.8,0.83145132]
[1772543735170,0.0053444,1953.0,1951.9,0.83065132]
[1772543735367,0.0053444,1953.0,1951.9,0.83640841]
[1772543735975,0.0053444,1953.0,1952.1,0.83065132]
[1772543736771,0.2117993,1953.2,1952.1,0.83065132]
[1772543736977,6.29819,1953.3,1952.1,0.83065132]
[1772543736978,0.25607,1952.9,1952.1,0.83065132]
[1772543737576,0.47133852,1952.9,1952.1,0.83065132]
[1772543737774,0.47571816,1952.9,1952.1,0.83065132]
[1772543739377,0.21964816,1952.9,1952.1,0.83065132]
[1772543739681,0.00437964,1952.9,1952.1,0.83065132]
[1772543740482,0.24190862,1952.9,1952.1,0.83065132]
[1772543742382,0.00437964,1952.9,1952.1,0.83065132]
[1772543742883,0.25602,1953.3,1952.1,0.83065132]
[1772543743583,0.22150591,1953.0,1952.1,0.83065132]
[1772543743783,0.00583327,1953.0,1952.1,0.83065132]
[1772543745174,4.13949788,1953.8,1952.2,0.25616]
[1772543745377,0.47576184,1953.9,1952.5,0.83145132]
[1772543745578,0.47576184,1953.9,1952.7,0.83065132]
[1772543746181,0.48130266,1953.9,1952.7,0.83065132]
[1772543746480,0.26148082,1953.9,1952.7,0.83065132]
[1772543746685,0.00554082,1953.9,1952.9,0.83065132]
[1772543746985,0.00554082,1953.9,1953.1,0.83065132]
[1772543747480,0.45868379,1954.4,1953.1,0.83065132]
[1772543748280,2.88880786,1954.4,1953.3,0.76945031]
[1772543748584,2.88880786,1954.4,1953.3,0.77395916]
[1772543748585,0.46419007,1954.4,1953.3,0.77395916]
[1772543748786,0.26138628,1954.4,1953.3,0.77395916]
[1772543749586,0.00550628,1954.4,1953.3,0.77395916]
[1772543750884,0.44888319,1954.9,1953.5,0.76945031]
[1772543751884,0.45491718,1954.9,1953.5,0.76945031]
[1772543752181,0.19643715,1954.6,1953.5,0.76945031]
[1772543752484,0.19643715,1954.6,1953.6,0.76945031]
[1772543754482,0.19387795,1954.4,1953.6,0.76945031]
[1772543755187,4.39516788,1956.0,1954.2,0.76945031]
[1772543755488,0.19106934,1955.5,1954.4,0.76945031]
[1772543755789,0.19106934,1955.5,1954.6,0.77025031]
[1772543756486,0.19582372,1955.5,1954.6,0.77025031]
[1772543756789,0.00475438,1955.5,1954.6,0.77025031]
[1772543758095,0.16568761,1956.0,1954.6,0.77025031]
[1772543758587,12.98884,1956.5,1954.8,0.76945031]
[1772543758588,0.16286829,1956.4,1954.8,0.76945031]
[1772543758788,0.16286829,1956.4,1955.0,0.77025031]
[1772543758988,0.16718455,1956.4,1955.0,0.7761248]
[1772543759385,0.16718455,1956.4,1955.2,0.76945031]
[1772543759587,0.00431626,1956.4,1955.2,0.76945031]
[1772543760394,0.15511041,1957.1,1955.3,0.76945031]
[1772543760588,0.15514172,1956.9,1955.3,0.76945031]
[1772543760789,0.15514172,1956.7,1955.5,0.76945031]
[1772543760994,0.15514172,1956.7,1955.6,0.76945031]
[1772543761393,0.15958476,1956.7,1955.6,0.76945031]
[1772543761583,0.16580552,1956.5,1955.6,0.76945031]
[1772543762691,0.00444304,1956.7,1955.6,0.76945031]
[1772543762692,0.16696142,1956.3,1955.6,0.76945031]
[1772543762890,0.16696142,1956.3,1955.5,0.0008]
[1772543764092,0.16696142,1956.3,1955.5,0.77025031]
[1772543764687,0.16696142,1956.3,1955.5,0.0008]
[1772543764886,0.16501004,1956.1,1955.1,0.76945031]
[1772543765691,0.42148165,1956.0,1955.1,0.76945031]
[1772543765893,0.16582165,1955.9,1955.1,0.76945031]
[1772543766098,0.16582165,1955.7,1954.7,0.76945031]
[1772543766496,0.25571,1955.6,1954.7,0.76945031]
[1772543767091,0.16692268,1955.5,1954.7,0.77470965]
[1772543770997,0.15936919,1955.3,1954.7,0.77470965]
[1772543771192,0.71660919,1955.1,1954.4,0.76945031]
[1772543772290,0.71660919,1955.1,1954.4,0.77592355]
[1772543772695,0.71874823,1954.7,1954.0,0.76945031]
[1772543772997,0.71874823,1954.7,1953.0,0.25605]
[1772543772998,0.71874823,1954.7,1953.8,0.76945031]
[1772543773303,0.71874823,1954.7,1953.8,0.77025031]
[1772543773606,0.71874823,1954.7,1953.8,0.77422034]
[1772543774093,0.74500749,1954.5,1953.8,0.00477003]
[1772543774494,0.74500749,1954.5,1953.8,0.77422034]
[1772543774701,0.74500749,1954.7,1953.8,0.77422034]
[1772543777502,4.39528788,1955.1,1953.8,0.77422034]
[1772543777708,1.00079749,1955.1,1953.9,0.81100471]
[1772543778199,0.25579,1955.1,1953.9,0.81100471]
[1772543778400,0.82991012,1955.2,1953.9,0.81100471]
[1772543778807,0.82991012,1955.2,1953.9,7.51400471]
[1772543779111,0.82991012,1955.2,1954.0,0.81100471]
[1772543779608,0.00500407,1955.3,1954.0,0.81100471]
[1772543779904,0.00500407,1955.3,1953.9,6.703]
[1772543779905,0.00500407,1955.3,1954.2,0.79149769]
[1772543780206,0.00500407,1955.3,1954.2,0.79229769]
[1772543780614,1.08463485,1955.6,1954.4,0.79149769]
[1772543780905,0.82891485,1955.6,1954.4,0.79149769]
[1772543781508,0.82891485,1955.6,1954.5,6.703]
[1772543781811,0.83334557,1955.6,1954.6,0.79149769]
[1772543782105,0.83334557,1955.6,1954.6,0.79229769]
[1772543782903,0.82891485,1955.5,1954.6,0.79229769]
[1772543783505,0.82891485,1955.3,1954.4,0.79149769]
[1772543784408,0.82891485,1955.1,1954.2,0.79229769]
[1772543785012,0.82891485,1954.9,1954.2,0.79229769]
[1772543786613,0.82891485,1955.1,1954.2,0.79229769]
[1772543788713,0.25577,1955.2,1954.2,0.79229769]
[1772543789215,0.82891485,1955.3,1954.2,0.79229769]
[1772543789409,10.89004043,1955.5,1954.4,0.25587]
[1772543789410,0.82891485,1955.5,1954.4,0.25587]
[1772543789615,0.83334557,1955.6,1954.6,0.79149769]
[1772543789815,0.83334557,1955.6,1954.6,0.79229769]
[1772543790015,0.00443072,1955.6,1954.6,0.79229769]
[1772543790610,0.83334557,1955.6,1954.7,0.79149769]
[1772543790811,0.00443072,1955.6,1954.7,0.79149769]
[1772543791012,0.82891485,1955.8,1954.7,0.79149769]
[1772543791406,0.82891485,1955.9,1954.9,0.79149769]
[1772543791612,0.82891485,1956.1,1954.9,0.79149769]
[1772543792011,0.83493083,1956.1,1954.9,0.79149769]
[1772543792612,0.00601598,1956.1,1955.1,0.79149769]
[1772543792809,0.00601598,1956.1,1955.1,0.79229769]
[1772543793014,0.83493083,1956.1,1955.1,0.79229769]
[1772543793511,0.82891485,1956.5,1955.6,0.79149769]
[1772543793716,0.82891485,1956.5,1955.6,0.79229769]
[1772543794618,0.83260286,1956.5,1955.6,0.79662165]
[1772543794813,0.25561,1956.4,1955.6,0.00512396]
[1772543795016,0.82891485,1956.1,1955.6,0.00512396]
[1772543795313,0.82891485,1956.4,1955.6,0.79662165]
[1772543796214,0.00368801,1956.5,1955.6,0.79662165]
[1772543797220,0.00368801,1956.5,1955.7,0.79149769]
[1772543798319,0.83260286,1956.5,1955.7,0.79149769]
[1772543799720,0.83260286,1956.5,1955.6,0.00512396]
[1772543800315,0.83260286,1956.5,1955.6,0.79662165]
[1772543801218,0.82891485,1956.3,1955.6,0.79662165]
[1772543801424,0.82891485,1956.3,1955.6,0.00512396]
[1772543801716,0.82891485,1956.3,1955.6,0.79662165]
[1772543803118,0.82891485,1955.9,1955.1,0.79229769]
[1772543803423,0.82891485,1955.9,1955.1,0.0008]
[1772543804016,0.82891485,1955.9,1955.1,0.0071746]
[1772543804523,0.82891485,1955.7,1955.1,0.0071746]
[1772543805316,1.08460485,1955.8,1955.1,0.79867229]
[1772543805518,0.82891485,1955.7,1955.1,0.79867229]
[1772543806124,1.08460485,1955.8,1955.1,0.79867229]
[1772543807325,0.82891485,1955.7,1955.1,0.79867229]
[1772543809818,0.84133377,1955.9,1955.1,0.79867229]
[1772543811720,15.0,1956.0,1955.1,0.79867229]
[1772543814024,15.0,1956.0,1955.3,0.83642449]
[1772543814222,14.63846247,1956.0,1955.3,0.83642449]
[1772543816326,10.56725722,1956.0,1955.5,0.83642449]
[1772543816526,10.56725722,1956.0,1955.5,0.83722449]
[1772543818527,11.43544737,1956.0,1955.5,7.53822449]
[1772543818830,0.86796277,1955.9,1955.5,0.83722449]
[1772543820125,0.86796277,1955.9,1955.3,6.9821068]
[1772543820326,0.86796277,1955.9,1955.4,0.279567]
[1772543821335,0.86796277,1955.9,1955.1,0.28523183]
[1772543821736,0.86796277,1955.9,1955.1,0.0071746]
[1772543822733,10.56725722,1956.0,1955.2,0.2686036]
[1772543822939,11.43523808,1956.0,1955.2,0.2686036]
[1772543823233,0.86798086,1955.9,1955.2,0.2686036]
[1772543823436,0.86798086,1955.9,1955.1,0.0071746]
[1772543826136,0.86798086,1955.9,1955.1,0.24783901]
[1772543827738,0.86798086,1955.9,1955.2,6.92337347]
[1772543828141,0.86798086,1955.9,1955.3,0.22237347]
[1772543829037,11.43530941,1956.0,1955.3,0.22237347]
[1772543829541,0.86806378,1955.9,1955.3,0.22237347]
[1772543829933,0.86806378,1955.9,1955.3,6.92337347]
[1772543830134,10.56725722,1956.0,1955.4,0.20434473]
[1772543830541,11.4353325,1956.0,1955.4,0.20434473]
[1772543831535,10.56725722,1956.0,1955.4,0.20434473]
[1772543831734,10.38066845,1956.0,1955.4,0.20434473]
[1772543832446,0.96138109,1956.4,1955.5,0.25573]
[1772543832645,0.96138109,1956.4,1955.5,0.25653]
[1772543834149,0.00368801,1956.5,1955.5,0.25653]
[1772543834345,0.00368801,1956.5,1955.8,0.71196296]
[1772543834546,0.96507485,1956.5,1956.0,0.71276296]
[1772543834850,0.96507485,1956.5,1956.1,7.41481654]
[1772543835046,0.84133377,1956.9,1956.1,7.41481654]
[1772543835953,0.84590521,1956.9,1956.1,7.41481654]
[1772543836152,0.84590521,1956.9,1956.2,0.83642449]
[1772543836352,0.84590521,1956.9,1956.2,7.53642449]
[1772543836548,0.84590521,1956.9,1956.3,0.83642449]
[1772543836749,0.84133377,1957.1,1956.3,0.83642449]
[1772543836950,0.84133377,1957.1,1956.5,0.83642449]
[1772543837150,0.84133377,1957.1,1956.5,0.83722449]
[1772543837649,0.84133377,1957.7,1956.5,0.83722449]
[1772543837851,0.00450077,1957.1,1956.5,0.84154755]
[1772543838048,1.26863538,1957.1,1956.5,0.00512306]
[1772543838250,1.26863538,1957.1,1956.6,6.7]
[1772543838551,1.26863538,1957.1,1956.0,0.0008]
[1772543838552,1.26413461,1956.5,1956.0,0.0008]
[1772543839551,1.26413461,1956.5,1956.0,0.00559707]
[1772543842556,1.26413461,1956.5,1956.0,1.26981067]
[1772543842957,1.26413461,1956.5,1956.0,0.00559707]
[1772543843254,1.26413461,1956.5,1956.0,1.26981067]
[1772543843853,1.26413461,1956.5,1956.0,0.00559707]
[1772543844059,1.26413461,1956.5,1955.6,7.9632136]
[1772543845059,1.26413461,1956.5,1955.6,7.9670384]
[1772543845257,1.26413461,1956.5,1955.6,1.2680384]
[1772543845458,1.26413461,1956.5,1955.6,7.9670384]
[1772543846458,1.26413461,1956.5,1955.6,1.2680384]
[1772543846654,1.22832654,1956.4,1955.6,0.0038248]
[1772543848159,1.22832654,1956.4,1955.6,1.2680384]
[1772543849359,1.22832654,1956.4,1955.6,0.0038248]
[1772543849560,1.48394654,1956.4,1955.5,0.0008]
[1772543849763,1.48394654,1956.4,1955.2,6.699]
[1772543850455,1.48394654,1956.4,1955.2,7.96686512]
[1772543851864,1.48394654,1956.4,1955.3,1.2642136]
[1772543854372,1.22832654,1956.4,1955.5,1.2642136]
[1772543854575,1.22832654,1956.4,1955.7,1.2642136]
[1772543855267,1.22832654,1956.4,1955.6,6.7]
[1772543855672,1.22832654,1956.4,1955.6,7.9642136]
[1772543856361,1.22832654,1956.4,1955.5,0.0008]
[1772543858674,1.22832654,1956.2,1955.5,0.0008]
[1772543863379,1.22832654,1956.2,1955.2,1.26786512]
[1772543863879,1.22832654,1956.2,1955.2,0.00365152]
[1772543864374,1.22832654,1955.8,1955.2,0.00365152]
[1772543864773,7.92832654,1955.8,1955.0,0.05]
[1772543864973,1.22832654,1955.7,1955.0,0.05]
[1772543865879,1.23323288,1955.7,1955.0,0.056163]
[1772543866377,1.23323288,1955.7,1954.7,1.2642136]
[1772543866980,1.23323288,1955.7,1954.6,1.2650136]
[1772543867382,1.22832654,1955.5,1954.6,0.00548686]
[1772543867877,1.22832654,1955.5,1954.6,1.17612751]
[1772543868679,1.27079731,1955.7,1954.8,1.17064065]
[1772543868881,1.26589097,1956.1,1955.2,1.17064065]
[1772543869082,1.26589097,1956.1,1955.2,1.17144065]
[1772543870085,1.2721979,1956.1,1955.2,1.17144065]
[1772543871284,0.00630693,1956.1,1955.4,1.17064065]
[1772543871590,0.00630693,1956.1,1955.3,0.25575]
[1772543871591,1.26589097,1956.3,1955.6,1.17144065]
[1772543871889,1.26589097,1956.8,1955.7,1.17064065]
[1772543872384,1.27097162,1956.8,1955.7,1.17064065]
[1772543872585,1.27097162,1956.8,1955.7,1.42634065]
[1772543874482,0.00508065,1956.8,1955.7,1.42634065]
[1772543874690,0.00508065,1956.8,1956.0,1.17064065]
[1772543874889,0.00508065,1956.8,1956.2,1.17064065]
[1772543877190,1.26589097,1957.1,1956.2,1.17064065]
[1772543877688,1.26589097,1957.7,1956.4,1.17144065]
[1772543877883,1.26589097,1957.7,1956.6,1.17064065]
[1772543878084,1.27162349,1957.7,1956.6,1.17064065]
[1772543879185,0.05,1957.0,1956.6,1.17064065]
[1772543879485,1.31589097,1957.0,1956.6,1.17064065]